[Event "WSTCC-65 2024"]
[Site "Krakow"]
[Date "2024.07.04"]
[Round "3.24"]
[White "Kot, Jerzy"]
[Black "Priedite, Ingrida"]
[Result "0-1"]
[ECO "A00"]
[WhiteElo "2019"]
[BlackElo "2044"]
[Annotator "NA RC"]
[PlyCount "118"]
[EventDate "2024.07.01"]
[EventType "team-tourn"]
[EventCountry "POL"]
[SourceTitle "playchess.com"]
[Source "ChessBase"]
[SourceQuality "1"]
[TimeControl "40/5400+30:1800+30"]

1. g3 {[%emt 0:00:07]} d5 {[%emt 0:00:44]} 2. Bg2 {[%emt 0:00:07]} e5 {[%emt 0:00:42]} 3. Nf3 {[%emt 0:00:05]} e4 {[%emt 0:00:38]} 4. Nd4 {[%emt 0:00:06]} c5 {[%emt 0:01:03]} 5. Nb5 {[%emt 0:00:08]} Nf6 {[%emt 0:01:05]} 6. O-O {[%emt 0:00:45]} Nc6 {[%emt 0:05:52]} 7. d3 {[%emt 0:00:21]} a6 {[%emt 0:03:47]} 8. N5c3 {[%emt 0:00:51]} exd3 {[%emt 0:06:48]} 9. cxd3 {[%emt 0:00:23]} Be6 {[%emt 0:00:45]} 10. Bg5 {[%emt 0:00:35]} Be7 {[%emt 0:00:24]} 11. e4 {[%emt 0:03:40]} dxe4 {[%emt 0:03:52]} 12. dxe4 {[%emt 0:00:21]} O-O {[%emt 0:02:24]} 13. h3 {[%emt 0:07:23]} h6 {[%emt 0:02:51]} 14. Be3 {[%emt 0:00:17]} Qxd1 {[%emt 0:17:42]} 15. Rxd1 {[%emt 0:01:04]} Rad8 {[%emt 0:00:24]} 16. Nd5 {[%emt 0:07:39]} Bxd5 {[%emt 0:05:21]} 17. exd5 {[%emt 0:00:16]} Nb4 {[%emt 0:00:18]} 18. Nc3 {[%emt 0:00:21]} Nc2 {[%emt 0:00:45]} 19. Rac1 {[%emt 0:00:12]} Nxe3 {[%emt 0:00:25]} 20. fxe3 {[%emt 0:00:09]} Bd6 {[%emt 0:00:35]} 21. Kf2 {[%emt 0:00:39]} Rfe8 {[%emt 0:01:01]} 22. Na4 {[%emt 0:04:01]} Nd7 {[%emt 0:01:52]} 23. b3 {[%emt 0:01:25]} b5 {[%emt 0:00:56]} 24. Nb2 {[%emt 0:02:16]} Nb6 {[%emt 0:05:14]} 25. Rc2 {[%emt 0:02:15]} Re7 {[%emt 0:00:53]} 26. Rdc1 {[%emt 0:10:50]} Rde8 {[%emt 0:01:52]} 27. e4 {[%emt 0:01:25]} g6 {[%emt 0:04:19]} 28. Nd3 {[%emt 0:05:19]} c4 {[%emt 0:02:28]} 29. Nf4 {[%emt 0:02:53]} Kg7 {[%emt 0:04:01]} 30. Kf1 {[%emt 0:03:56]} Bxf4 {[%emt 0:10:20]} 31. gxf4 {[%emt 0:00:11]} Rxe4 {[%emt 0:00:10]} 32. Bxe4 {[%emt 0:00:25]} Rxe4 {[%emt 0:00:09]} 33. Rd1 {[%emt 0:00:24]} Rxf4+ {[%emt 0:02:36]} 34. Kg2 {[%emt 0:01:58]} Re4 {[%emt 0:07:30]} 35. d6 {[%emt 0:00:33]} Re8 {[%emt 0:00:17]} 36. d7 {[%emt 0:04:01]} Rd8 {[%emt 0:01:07]} 37. Rd6 {[%emt 0:00:39]} Nxd7 {[%emt 0:01:59]} 38. bxc4 {[%emt 0:00:15]} bxc4 {[%emt 0:00:22]} 39. Rxc4 {[%emt 0:00:27]} Ne5 {[%emt 0:00:42]} 40. Rxd8 {[%emt 0:02:12]} Nxc4 {[%emt 0:00:09]} 41. Rd4 {[%emt 0:30:21]} Nb2 {[%emt 0:31:59]} 42. Kf3 {[%emt 0:01:01]} a5 {[%emt 0:01:58]} 43. Ke2 {[%emt 0:01:44]} f5 {[%emt 0:00:53]} 44. Kd2 {[%emt 0:00:27]} Kf6 {[%emt 0:00:37]} 45. Rd6+ {[%emt 0:05:24]} Kg5 {[%emt 0:00:49]} 46. Kc3 {[%emt 0:00:55]} Na4+ {[%emt 0:00:00]} 47. Kc4 {[%emt 0:00:00]} f4 {[%emt 0:00:00]} 48. a3 {[%emt 0:00:00]} f3 {[%emt 0:00:00]} 49. h4+ {[%emt 0:00:00]} Kxh4 {[%emt 0:00:00]} 50. Kb5 {[%emt 0:00:00]} Nc3+ {[%emt 0:00:00]} 51. Kxa5 {[%emt 0:00:00]} g5 {[%emt 0:00:00]} 52. Rxh6+ {[%emt 0:00:00]} Kg3 {[%emt 0:00:00]} 53. Kb4 {[%emt 0:00:00]} Nd5+ {[%emt 0:00:00]} 54. Kc5 {[%emt 0:00:00]} f2 {[%emt 0:00:00]} 55. Rh1 {[%emt 0:00:00]} Kg2 {[%emt 0:00:00]} 56. Rd1 {[%emt 0:00:00]} f1=Q {[%emt 0:00:00]} 57. Rxf1 {[%emt 0:00:00]} Kxf1 {[%emt 0:00:00]} 58. a4 {[%emt 0:00:00]} g4 {[%emt 0:00:00]} 59. a5 {[%emt 0:00:00]} g3 {[%emt 0:00:00]} 0-1

[Event "WSTCC-65 2024"]
[Site "Krakow"]
[Date "2024.07.04"]
[Round "3.24"]
[White "Mueggenburg, Rolf"]
[Black "O`Sullivan, Tom"]
[Result "1/2-1/2"]
[ECO "D00"]
[WhiteElo "1777"]
[BlackElo "1715"]
[Annotator "NA RC"]
[PlyCount "30"]
[EventDate "2024.07.01"]
[EventType "team-tourn"]
[EventCountry "POL"]
[SourceTitle "playchess.com"]
[Source "ChessBase"]
[SourceQuality "1"]
[TimeControl "40/5400+30:1800+30"]

1. d4 {[%emt 0:00:15]} d5 {[%emt 0:00:09]} 2. Bf4 {[%emt 0:00:28]} Bf5 {[%emt 0:00:59]} 3. e3 {[%emt 0:00:15]} Nd7 {[%emt 0:01:19]} 4. Bd3 Bxd3 {[%emt 0:00:52]} 5. Qxd3 {[%emt 0:00:42]} e6 {[%emt 0:01:41]} 6. Nf3 {[%emt 0:01:33]} Ngf6 {[%emt 0:00:35]} 7. Bg5 {[%emt 0:01:32]} Be7 {[%emt 0:01:20]} 8. Nbd2 {[%emt 0:00:45]} O-O {[%emt 0:01:53]} 9. O-O {[%emt 0:02:47]} c5 {[%emt 0:02:22]} 10. c3 {[%emt 0:01:48]} Rc8 {[%emt 0:03:15]} 11. e4 {[%emt 0:03:34]} dxe4 {[%emt 0:04:15]} 12. Nxe4 {[%emt 0:00:58]} cxd4 {[%emt 0:02:04]} 13. Qxd4 {[%emt 0:03:32]} Nxe4 {[%emt 0:07:00]} 14. Bxe7 {[%emt 0:00:34]} Qxe7 {[%emt 0:06:28]} 15. Qxe4 {[%emt 0:06:39]} Qd8 1/2-1/2